bitfinex-derivatives/quotes_ETHF0:USTF0_20240905
["timestamp","ask_amount","ask_price","bid_price","bid_amount"]
[1725546622419,0.41654,2400.9,2400.7,3.62435]
[1725546622621,0.4165,2401.1,2400.8,2.3738]
[1725546622927,0.41649,2401.2,2400.8,4.6984]
[1725546623115,9.2783,2401.4,2400.8,4.6984]
[1725546623313,0.41653,2400.9,2400.8,4.6984]
[1725546624016,0.41653,2400.9,2400.6,0.00625156]
[1725546624017,0.41656,2400.7,2400.6,0.00625156]
[1725546624423,0.41656,2400.7,2400.6,3.21405156]
[1725546624926,7.0478,2401.1,2400.7,0.41656]
[1725546625218,1.04122,2401.2,2400.8,0.41653]
[1725546625219,2.3562,2401.2,2400.8,0.41653]
[1725546625426,0.4165,2401.1,2400.8,0.41653]
[1725546625615,0.00412352,2401.3,2400.9,3.2078]
[1725546625821,0.00412352,2401.3,2401.1,0.41648]
[1725546625822,0.42059352,2401.3,2401.1,0.41648]
[1725546626214,0.41648,2401.2,2401.0,0.4165]
[1725546626419,0.00412352,2401.3,2401.1,0.41649]
[1725546626420,0.42059352,2401.3,2401.1,0.41649]
[1725546626918,0.42059352,2401.3,2401.0,0.41651]
[1725546627123,0.42058352,2401.3,2400.9,3.2078]
[1725546627424,0.42058352,2401.3,2401.1,0.41649]
[1725546627616,0.00412352,2401.3,2401.2,0.41647]
[1725546628018,0.00412352,2401.3,2401.2,7.78907]
[1725546629022,0.00412352,2401.3,2401.2,3.62427]
[1725546629418,0.00412352,2401.3,2401.2,7.78907]
[1725546631225,0.00412352,2401.3,2401.2,10.97816]
[1725546631527,0.41635,2402.0,2401.7,0.41638]
[1725546631721,0.41635,2402.0,2401.8,0.41637]
[1725546631923,3.40946,2402.2,2401.8,0.41637]
[1725546631924,0.41635,2401.9,2401.8,2.1479]
[1725546633018,0.41642,2401.5,2401.4,3.2078]
[1725546633221,0.41641,2401.6,2401.4,3.2078]
[1725546633722,3.84,2401.8,2401.4,3.62424]
[1725546633925,0.41641,2401.6,2401.4,3.2078]
[1725546634321,2.7573,2401.7,2401.4,3.62424]
[1725546634624,2.3409,2401.7,2401.4,3.2078]
[1725546634827,3.84,2402.5,2401.5,4.164]
[1725546635018,0.4163,2402.3,2401.8,3.2078]
[1725546635326,0.4163,2402.2,2401.9,2.64384]
[1725546635526,3.3816,2402.4,2401.9,2.2275]
[1725546635828,0.41631,2402.2,2401.9,2.2275]
[1725546636029,3.3816,2402.4,2401.9,2.2275]
[1725546636030,0.41632,2402.1,2401.9,2.2275]
[1725546636222,0.41633,2402.1,2401.9,3.2078]
[1725546636420,3.84,2402.2,2401.8,0.00625156]
[1725546636622,0.41635,2401.9,2401.8,0.00625156]
[1725546637937,2.61885,2401.9,2401.8,0.00625156]
[1725546639744,2.2025,2401.9,2401.8,0.00625156]
[1725546640546,3.84,2402.2,2401.8,3.21405156]
[1725546640752,3.84,2402.2,2401.4,5.53418]
[1725546640753,0.41634,2402.0,2401.7,0.41638]
[1725546640953,0.41634,2402.0,2401.7,0.41639]
[1725546641138,0.41634,2402.0,2401.5,3.2078]
[1725546641450,0.41632,2402.1,2401.8,0.41636]
[1725546641949,0.41633,2402.1,2401.8,0.41637]
[1725546642447,0.41634,2402.0,2401.7,0.42263156]
[1725546642646,0.41634,2402.0,2401.8,0.41637]
[1725546643045,0.41633,2402.1,2401.8,0.41637]
[1725546643246,6.03745156,2402.2,2401.9,0.41635]
[1725546643444,0.41633,2402.1,2401.9,0.41635]
[1725546644147,0.41632,2402.1,2401.9,0.41634]
[1725546644448,1.04033,2403.2,2402.2,1.04076]
[1725546644655,1.04033,2403.2,2402.3,2.3385]
[1725546644853,6.0196,2403.3,2402.9,0.41617]
[1725546644854,2.59572,2403.3,2402.9,0.41617]
[1725546645150,2.1796,2403.3,2402.6,4.24838]
[1725546645357,2.1796,2403.3,2403.0,0.41615]
[1725546645543,2.59572,2403.3,2403.0,0.41616]
[1725546645743,2.59572,2403.3,2402.9,0.00625156]
[1725546645744,0.41615,2403.1,2402.9,0.00625156]
[1725546646052,0.41616,2403.0,2402.9,0.00625156]
[1725546647853,0.41616,2403.1,2402.9,0.00625156]
[1725546648150,0.41615,2403.1,2402.9,0.00625156]
[1725546648346,0.41616,2403.0,2402.9,0.00625156]
[1725546648542,0.41613,2403.2,2402.9,0.00625156]
[1725546648953,5.3874,2403.3,2402.9,0.00625156]
[1725546649251,0.41616,2403.0,2402.9,0.00625156]
[1725546651353,5.3874,2403.3,2402.9,0.00625156]
[1725546651752,0.41616,2403.0,2402.9,0.00625156]
[1725546652845,1.45657,2403.0,2402.9,0.00625156]
[1725546653050,1.04048,2402.9,2402.5,3.89723831]
[1725546653247,0.41622,2402.7,2402.5,3.89723831]
[1725546653457,1.04048,2402.9,2402.6,0.41623]
[1725546653458,0.41618,2402.9,2402.6,0.41623]
[1725546653661,0.41618,2402.9,2402.5,0.41624]
[1725546653867,0.41618,2402.9,2402.6,0.41623]
[1725546654363,0.41618,2402.9,2402.5,0.42249156]
[1725546654549,0.4162,2402.8,2402.5,0.42249156]
[1725546654747,0.41619,2402.9,2402.6,0.41623]
[1725546655256,0.42242156,2403.0,2402.7,0.41621]
[1725546655754,0.00625156,2403.0,2402.5,0.00625156]
[1725546655957,0.41623,2402.6,2402.5,0.00625156]
[1725546656150,4.66462,2402.6,2402.5,0.00625156]
[1725546656463,1.45682,2402.6,2402.5,0.00625156]
[1725546657058,0.41623,2402.6,2402.5,0.00625156]
[1725546657459,0.41621,2402.8,2402.5,0.42249156]
[1725546658159,3.2078,2402.9,2402.5,0.42249156]
[1725546658160,0.41622,2402.7,2402.5,0.42249156]
[1725546658355,0.41621,2402.8,2402.5,0.42249156]
[1725546658556,1.04669156,2403.0,2402.7,0.4162]
[1725546658557,0.42243156,2403.0,2402.7,0.4162]
[1725546658763,0.41618,2402.9,2402.6,4.6818]
[1725546658958,0.41618,2402.9,2402.6,5.09802]
[1725546659162,0.4162,2402.8,2402.6,4.6818]
[1725546659364,0.4162,2402.8,2402.6,5.09803]
[1725546659659,0.4162,2402.8,2402.6,4.6818]
[1725546659966,0.41621,2402.7,2402.6,4.6818]
[1725546660163,4.24827,2402.9,2402.6,4.6818]
[1725546660365,0.41621,2402.7,2402.6,4.6818]
[1725546660667,0.41621,2402.8,2402.6,5.09803]
[1725546660864,0.41621,2402.7,2402.6,4.6818]
[1725546661068,1.45682,2402.6,2402.5,0.00625156]
[1725546661363,9.54521,2402.6,2402.5,0.00625156]
[1725546661567,13.70761,2402.6,2402.5,0.00625156]
[1725546661861,1.45682,2402.6,2402.5,0.00625156]
[1725546662161,2.61183,2402.6,2402.5,0.00625156]
[1725546662360,0.41623,2402.6,2402.5,0.00625156]
[1725546662564,3.2078,2402.9,2402.5,4.16865156]
[1725546662767,3.2078,2402.9,2402.6,4.4435]
[1725546662768,4.24826,2402.9,2402.6,4.4435]
[1725546662958,4.24826,2402.9,2402.5,0.00625156]
[1725546662959,0.41623,2402.6,2402.5,0.00625156]
[1725546663363,3.62403,2402.6,2402.5,0.00625156]
[1725546664266,0.41623,2402.6,2402.5,0.00625156]
[1725546664660,1.04049,2402.9,2402.5,0.00625156]
[1725546664860,1.45682,2402.6,2402.5,0.00625156]
[1725546665472,3.73642,2402.6,2402.5,0.00625156]
[1725546665763,0.41623,2402.7,2402.5,0.00625156]
[1725546665973,0.41623,2402.6,2402.5,0.00625156]
[1725546666268,1.45682,2402.6,2402.5,0.00625156]
[1725546667162,0.41623,2402.6,2402.5,0.00625156]
[1725546668365,0.41622,2402.7,2402.5,0.00625156]
[1725546668565,0.00625156,2403.0,2402.7,0.4162]
[1725546668770,0.00625156,2403.0,2402.8,2.2194]
[1725546668771,0.41619,2402.9,2402.8,2.2194]
[1725546670763,0.41623,2402.7,2402.5,0.00625156]
[1725546670957,0.00625156,2403.0,2402.5,0.00625156]
[1725546671167,3.29623,2402.7,2402.5,0.00625156]
[1725546671366,0.41623,2402.7,2402.5,0.42250156]
[1725546671561,1.04049,2402.9,2402.5,0.00625156]
[1725546671767,1.0405,2402.8,2402.5,0.00625156]
[1725546671975,0.41622,2402.7,2402.5,0.42249156]
[1725546672175,0.41623,2402.6,2402.5,0.00625156]
[1725546672672,0.41623,2402.6,2402.5,4.16865156]
[1725546672869,1.45682,2402.6,2402.5,0.00625156]
[1725546673171,1.04065,2402.5,2401.9,2.3652]
[1725546673471,1.04065,2402.5,2402.1,0.41631]
[1725546673472,0.41628,2402.3,2402.1,0.41631]
[1725546673769,2.2559,2402.6,2402.1,2.88]
[1725546673979,3.2078,2402.8,2402.3,2.88]
[1725546673980,1.0405,2402.8,2402.3,2.88]
[1725546674165,0.00625156,2403.0,2402.5,0.41624]
[1725546674166,0.41621,2402.7,2402.5,0.41624]
[1725546674569,2.88,2402.6,2402.4,2.3342]
[1725546674878,0.41627,2402.4,2402.3,0.00625156]
[1725546675169,2.49761,2402.4,2402.3,0.00625156]
[1725546675365,1.45694,2402.4,2402.3,0.00625156]
[1725546676065,0.41627,2402.4,2402.3,0.00625156]
[1725546677760,0.41627,2402.4,2402.3,2.17845156]
[1725546677960,7.12832,2402.8,2402.3,2.17845156]
[1725546678169,0.41625,2402.5,2402.4,2.3768]
[1725546678369,0.41625,2402.5,2402.3,2.17845156]
[1725546678370,0.41627,2402.4,2402.3,0.00625156]
[1725546678567,1.45694,2402.4,2402.3,0.00625156]
[1725546678973,0.41627,2402.4,2402.3,0.00625156]
[1725546679172,1.45694,2402.4,2402.3,0.00625156]
[1725546679866,4.66474,2402.4,2402.3,0.00625156]
[1725546680066,5.70541,2402.4,2402.3,0.00625156]
[1725546680274,8.58541,2402.4,2402.3,0.00625156]
[1725546680872,11.70714,2402.4,2402.3,0.00625156]
[1725546681072,1.45694,2402.4,2402.3,0.00625156]
[1725546681278,5.61934,2402.4,2402.3,0.00625156]
[1725546681779,3.81234,2402.4,2402.3,0.00625156]
[1725546681969,6.69234,2402.4,2402.3,0.00625156]
[1725546682367,0.41624,2402.6,2402.4,0.41626]
[1725546682572,6.47362,2402.8,2402.3,0.00625156]
[1725546682873,0.41625,2402.5,2402.3,0.42252156]
[1725546683073,0.41623,2402.7,2402.5,0.41625]
[1725546683278,1.45675,2402.7,2402.6,2.3569]
[1725546683773,1.45675,2402.7,2402.4,2.1962]
[1725546683774,0.41625,2402.5,2402.4,2.1962]
[1725546684266,0.41624,2402.6,2402.4,6.77486]
[1725546684471,0.41624,2402.6,2402.4,2.61246]
[1725546684870,0.41625,2402.5,2402.4,2.61246]
[1725546685370,0.41623,2402.6,2402.4,6.77486]
[1725546685570,0.41623,2402.6,2402.4,2.61246]
[1725546685778,0.41623,2402.6,2402.5,0.41625]
[1725546685976,6.15200156,2403.0,2402.4,2.1962]
[1725546686178,3.27200156,2403.0,2402.7,0.41621]
[1725546686385,0.4162,2402.8,2402.4,6.11687]
[1725546686674,0.4162,2402.8,2402.7,0.41621]
[1725546686984,0.4162,2402.8,2402.7,0.4162]
[1725546687371,0.41622,2402.7,2402.6,0.41623]
[1725546687773,0.41621,2402.7,2402.6,4.57862]
[1725546688380,0.00625156,2403.0,2402.6,13.24930717]
[1725546688579,0.00625156,2403.0,2402.9,0.41618]
[1725546689077,0.00625156,2403.0,2402.9,4.57778]
[1725546689977,0.00625156,2403.0,2402.6,6.29470717]
[1725546689978,0.41621,2402.8,2402.6,3.2078]
[1725546690286,0.41619,2402.9,2402.8,0.41618]
[1725546690580,0.41621,2402.8,2402.7,0.4162]
[1725546690774,1.04046,2402.9,2402.4,2.61244]
[1725546690775,0.41625,2402.5,2402.4,2.61244]
[1725546691575,0.41625,2402.5,2402.4,6.77484]
[1725546692171,0.41625,2402.5,2402.4,2.61244]
[1725546692377,0.41625,2402.5,2402.4,6.77484]
[1725546692579,0.41624,2402.6,2402.5,0.41623]
[1725546692875,0.41621,2402.8,2402.7,0.4162]
[1725546693885,0.41619,2402.9,2402.8,0.41618]
[1725546694084,0.41622,2402.8,2402.7,0.4162]
[1725546694580,0.41622,2402.8,2402.7,4.5778]
[1725546695585,1.04666156,2403.0,2402.8,0.41618]
[1725546695586,0.00625156,2403.0,2402.8,0.41618]
[1725546695885,0.41618,2402.9,2402.8,0.41618]
[1725546696284,0.00625156,2403.0,2402.9,0.41618]
[1725546696485,0.00625156,2403.0,2402.9,7.82424]
[1725546697176,0.00625156,2403.0,2402.9,6.78378]
[1725546697688,0.00625156,2403.0,2402.9,7.82424]
[1725546697988,0.00625156,2403.0,2402.9,6.78378]
[1725546698176,0.00625156,2403.0,2402.9,7.82424]
[1725546698373,0.00625156,2403.0,2402.9,10.70424]
[1725546699190,0.00625156,2403.0,2402.9,11.7447]
[1725546699485,1.03998,2404.0,2403.7,0.41603]
[1725546699683,0.41603,2403.8,2403.6,0.41605]
[1725546699892,0.41603,2403.8,2403.6,0.41604]
[1725546700076,1.03998,2404.0,2403.7,0.41604]
[1725546700282,0.41604,2403.8,2403.6,0.41605]
[1725546700480,0.41604,2403.8,2403.6,0.42230156]
[1725546700779,0.41604,2403.7,2403.6,0.42230156]
[1725546701184,0.41604,2403.8,2403.6,4.58230156]
[1725546701389,1.03998,2404.0,2403.6,0.42230156]
[1725546701586,0.416,2404.0,2403.6,0.00625156]
[1725546701790,0.41601,2403.9,2403.8,0.41601]
[1725546701988,0.41602,2403.8,2403.7,2.2564]
[1725546702288,0.41602,2403.8,2403.6,0.00625156]
[1725546702289,1.45615,2403.7,2403.6,0.00625156]
[1725546702484,0.41604,2403.7,2403.6,0.00625156]
[1725546703085,0.41603,2403.8,2403.6,0.42231156]
[1725546703289,0.41604,2403.7,2403.6,0.00625156]
[1725546703585,1.45615,2403.7,2403.6,0.00625156]
[1725546703786,18.74406,2403.7,2403.6,0.00625156]
[1725546703979,0.41613,2403.2,2403.1,3.2078]
[1725546705685,3.62393,2403.2,2403.0,2.3167]
[1725546706079,0.41614,2403.1,2402.9,0.00625156]
[1725546706284,0.41616,2403.0,2402.9,0.00625156]
[1725546706482,0.41616,2403.1,2402.9,0.00625156]
[1725546706692,0.41614,2403.2,2402.9,0.42242156]
[1725546706989,0.4161,2403.4,2403.1,0.41614]
[1725546707594,2.74179,2403.5,2403.2,0.41612]
[1725546708091,0.4161,2403.4,2403.2,0.41612]
[1725546708303,2.3257,2403.5,2403.2,0.41612]
[1725546708590,1.04011,2403.7,2403.2,0.41612]
[1725546708785,1.04011,2403.7,2403.0,5.1032]
[1725546708786,0.41611,2403.3,2403.1,0.41614]
[1725546709189,1.04021,2403.5,2402.9,3.63022156]
[1725546709379,8.4135,2403.6,2402.9,0.00625156]
[1725546709380,3.2078,2403.6,2402.9,0.00625156]
[1725546709586,0.41606,2403.6,2403.4,0.41609]
[1725546709793,2.2133,2403.7,2403.2,2.88]
[1725546709990,0.41609,2403.4,2403.3,2.2109]
[1725546710180,1.04015,2403.6,2403.0,2.2889]
[1725546710390,0.41611,2403.3,2403.1,0.41614]
[1725546710588,0.41613,2403.2,2403.1,3.2078]
[1725546710785,0.41613,2403.2,2403.0,4.91596]
[1725546710985,8.3011,2403.7,2403.0,4.4998]
[1725546711184,1.04015,2403.6,2403.1,0.41614]
[1725546711398,0.41612,2403.3,2403.1,0.41614]
[1725546711590,1.04015,2403.6,2403.2,0.41613]
[1725546711591,0.4161,2403.4,2403.2,0.41613]
[1725546711904,1.45657,2403.0,2402.9,0.00625156]
[1725546712087,4.66437,2403.0,2402.9,0.00625156]
[1725546712287,8.82597,2403.0,2402.9,0.00625156]
[1725546712489,4.57776,2403.0,2402.9,0.00625156]
[1725546712896,0.41616,2403.0,2402.9,0.00625156]
[1725546713494,0.41616,2403.1,2402.9,0.00625156]
[1725546713800,4.3964,2403.2,2402.9,0.00625156]
[1725546714293,1.45657,2403.0,2402.9,0.00625156]
[1725546714489,10.2494,2403.1,2402.6,0.41623]
[1725546714685,0.41619,2402.9,2402.6,0.41622]
[1725546715293,0.41619,2402.9,2402.4,3.2078]
[1725546715294,0.4162,2402.8,2402.5,0.41624]
[1725546715891,0.4162,2402.8,2402.4,3.21405156]
[1725546715892,0.41625,2402.5,2402.4,0.00625156]
[1725546716294,3.62405,2402.5,2402.4,0.00625156]
[1725546716595,0.41625,2402.5,2402.4,0.00625156]
[1725546716799,0.41635,2401.9,2401.8,7.10503831]
[1725546716991,0.41639,2401.7,2401.5,4.648]
[1725546717194,2.88,2401.9,2401.5,4.648]
[1725546717195,0.41638,2401.8,2401.5,4.648]
[1725546717486,0.41639,2401.7,2401.5,4.648]
[1725546717687,0.4164,2401.6,2401.5,2.2814]
[1725546717898,0.41644,2401.4,2401.3,3.21405156]
[1725546718097,3.29644,2401.4,2401.3,0.00625156]
[1725546718298,17.29291,2401.4,2400.8,2.2814]
[1725546718500,2.88,2401.1,2400.8,2.2814]
[1725546718701,3.2965,2401.1,2400.7,2.3666]
[1725546719111,2.88,2401.1,2400.7,2.78316]
[1725546719406,2.88,2401.1,2400.7,2.37285156]
[1725546719407,0.41649,2401.1,2400.7,2.37285156]
[1725546719594,0.41649,2401.1,2400.7,2.78941156]
[1725546719795,0.41648,2401.2,2400.7,2.78941156]
[1725546720001,0.41648,2401.2,2400.8,0.41654]
[1725546720202,0.00625156,2401.6,2401.0,7.0478]
[1725546720407,0.00625156,2401.6,2401.1,2.3188]
[1725546720609,0.00625156,2401.6,2401.4,0.41643]
[1725546720908,0.42266156,2401.6,2401.2,0.41647]
[1725546721106,0.42266156,2401.6,2401.0,3.2078]
[1725546721107,0.00625156,2401.6,2401.0,3.2078]
[1725546721307,0.41648,2401.2,2400.8,0.41654]
[1725546721509,0.41652,2401.0,2400.7,0.00625156]
[1725546722212,0.4165,2401.1,2400.7,0.42280156]
[1725546722403,0.41649,2401.1,2400.7,0.00625156]
[1725546722603,0.41649,2401.1,2400.8,0.41654]
[1725546722799,0.41648,2401.2,2400.9,0.41652]
[1725546723202,0.41648,2401.2,2400.7,3.84625156]
[1725546723402,0.41647,2401.3,2401.0,0.41651]
[1725546723604,0.00625156,2401.6,2400.9,3.2078]
[1725546723808,0.00625156,2401.6,2401.0,6.1072]
[1725546724008,0.00625156,2401.6,2401.2,7.0478]
[1725546724202,0.42266156,2401.6,2401.0,2.2672]
[1725546724399,0.42266156,2401.6,2401.3,0.41644]
[1725546724608,0.00625156,2401.6,2401.1,0.41648]
[1725546725004,0.41645,2401.4,2401.1,0.41649]
[1725546725204,0.41647,2401.3,2401.0,2.2672]
[1725546725401,0.41643,2401.5,2401.2,0.41646]
[1725546725609,0.41644,2401.4,2401.2,0.41646]
[1725546725808,0.41643,2401.5,2401.0,6.1072]
[1725546726012,0.00625156,2401.6,2401.1,0.41648]
[1725546726215,0.41646,2401.3,2401.1,0.41649]
[1725546726608,0.41645,2401.4,2401.2,0.41647]
[1725546726810,0.41642,2401.5,2401.2,0.41646]
[1725546727014,0.41644,2401.4,2401.2,0.41646]
[1725546727510,0.42266156,2401.6,2401.4,0.41643]
[1725546727717,0.41642,2401.5,2401.3,2.65765]
[1725546728015,0.00625156,2401.6,2401.5,0.41642]
[1725546729113,0.42265156,2401.6,2401.5,0.41642]
[1725546729421,0.00625156,2401.6,2401.5,0.41642]
[1725546730425,0.42265156,2401.6,2401.4,2.3505]
[1725546730807,0.42265156,2401.6,2401.5,0.41642]
[1725546731022,0.42265156,2401.6,2401.5,2.77602]
[1725546731216,4.24848,2402.4,2401.5,21.02888]
[1725546731424,0.41635,2401.9,2401.8,0.41636]
[1725546731721,0.41637,2401.8,2401.7,0.41638]
[1725546731916,0.41636,2401.9,2401.8,0.41637]
[1725546732117,3.2078,2402.1,2401.5,5.5674]
[1725546732315,0.4164,2401.6,2401.5,5.5674]
[1725546732616,0.4164,2401.6,2400.9,3.89723831]
[1725546732617,0.41651,2401.0,2400.9,3.89723831]
[1725546732920,0.41651,2401.1,2400.8,0.41653]
[1725546733120,0.41653,2400.9,2400.7,0.42280156]
[1725546733317,0.41654,2400.8,2400.7,0.00625156]
[1725546734023,1.04119,2401.2,2400.7,0.00625156]
[1725546734222,0.41654,2400.8,2400.7,0.00625156]
[1725546734422,0.41654,2400.9,2400.7,0.00625156]
[1725546734611,0.41654,2400.8,2400.7,0.00625156]
[1725546735217,0.41653,2400.9,2400.7,0.00625156]
[1725546735528,0.41654,2400.8,2400.7,0.00625156]
[1725546735721,3.62432,2401.0,2400.7,0.00625156]
[1725546736022,3.2078,2401.4,2400.7,0.00625156]
[1725546736227,2.2799,2401.5,2401.0,0.4165]
[1725546736522,2.2799,2401.5,2401.1,0.41648]
[1725546736726,3.2078,2401.7,2401.2,0.41647]
[1725546736922,3.2078,2401.7,2401.3,0.41645]
[1725546737115,3.2078,2401.7,2401.3,3.2078]
[1725546737315,3.84,2401.6,2400.9,2.3138]
[1725546737519,3.84,2401.6,2400.9,2.73032]
[1725546737720,3.2078,2401.7,2400.9,2.3138]
[1725546738027,0.41643,2401.5,2400.9,2.3138]
[1725546738228,3.2078,2401.7,2401.0,0.4165]
[1725546738532,0.41645,2401.4,2401.0,0.4165]
[1725546738822,3.2078,2401.7,2400.9,2.73031]
[1725546739129,0.41645,2401.4,2400.9,2.73031]
[1725546739328,3.2078,2401.7,2400.9,2.73031]
[1725546739329,0.41646,2401.3,2400.9,2.73031]
[1725546739529,3.2078,2401.7,2400.9,2.73031]
[1725546739530,0.41645,2401.4,2401.0,0.41651]
[1725546739722,3.2078,2401.7,2400.9,2.3138]
[1725546739723,0.41646,2401.3,2400.9,2.3138]
[1725546739923,9.24217,2401.8,2400.9,2.3138]
[1725546739924,3.2078,2401.4,2400.9,2.3138]
[1725546740226,2.2477,2401.3,2400.9,2.3138]
[1725546740414,0.41654,2400.8,2400.7,0.00625156]
[1725546741515,3.62434,2400.8,2400.7,0.00625156]
[1725546741722,4.58214,2400.8,2400.7,0.00625156]
[1725546742023,1.04145,2400.6,2400.1,3.89723831]
[1725546742224,17.2134,2400.8,2400.0,5.3733]
[1725546742225,0.41661,2400.4,2400.0,5.3733]
[1725546742530,2.2477,2400.7,2400.0,5.3733]
[1725546742531,0.41666,2400.2,2400.0,5.3733]
[1725546742825,0.41669,2400.0,2399.6,0.41674]
[1725546743024,0.41669,2400.0,2399.9,0.00625156]
[1725546743227,0.00625156,2400.3,2399.9,0.00625156]
[1725546743420,0.00625156,2400.3,2400.2,0.41665]
[1725546743822,0.00625156,2400.3,2400.2,4.58305]
[1725546744433,0.00625156,2400.3,2400.2,10.58305]
[1725546744631,0.41653,2400.9,2400.6,0.41656]
[1725546744828,2.3473,2401.2,2400.6,0.41657]
[1725546745021,3.38853,2401.2,2400.5,0.41658]
[1725546745225,0.41653,2400.9,2400.6,2.2787]
[1725546745626,0.41655,2400.8,2400.6,2.2787]
[1725546745830,0.41655,2400.8,2400.3,0.41662]
[1725546745831,0.41657,2400.7,2400.3,0.41662]
[1725546746034,0.00625156,2401.0,2400.3,3.2078]
[1725546746235,0.00625156,2401.0,2400.7,0.41655]
[1725546746730,0.00625156,2401.0,2400.4,2.2548]
[1725546746928,0.00625156,2401.0,2400.8,0.41653]
[1725546747128,0.00625156,2401.0,2400.8,0.41654]
[1725546747326,0.00625156,2401.0,2400.9,0.41653]
[1725546747727,0.00625156,2401.0,2400.9,4.58133]
[1725546747924,0.00625156,2401.0,2400.9,10.00493]
[1725546748229,0.00625156,2401.0,2400.9,12.25973]
[1725546750535,0.00625156,2401.0,2400.9,4.88713]
[1725546751940,0.00625156,2401.0,2400.9,5.92845]
[1725546752938,3.2078,2401.5,2400.9,5.92845]
[1725546752939,3.2078,2401.5,2401.4,0.41644]
[1725546753530,0.41641,2401.6,2401.5,0.41642]
[1725546753737,0.41639,2401.7,2401.5,0.41642]
[1725546754132,0.4164,2401.6,2401.5,0.41642]
[1725546754628,0.4164,2401.6,2401.4,0.00625156]
[1725546754629,0.00625156,2401.8,2401.6,0.4164]
[1725546754830,0.00625156,2401.8,2401.7,0.41639]
[1725546755630,0.00625156,2401.8,2401.6,0.41639]
[1725546755937,0.4164,2401.6,2401.5,2.3234]
[1725546756132,0.4164,2401.6,2401.5,2.73982]
[1725546756332,0.00625156,2401.8,2401.5,2.73982]
[1725546756536,0.4164,2401.7,2401.6,0.4164]
[1725546756839,0.4164,2401.7,2401.5,2.73981]
[1725546757051,0.4164,2401.7,2401.6,0.4164]
[1725546757234,0.4164,2401.7,2401.5,2.73981]
[1725546757729,3.6242,2401.6,2401.5,2.73981]
[1725546757940,0.00625156,2401.8,2401.4,0.00625156]
[1725546757941,0.41642,2401.5,2401.4,0.00625156]
[1725546758244,2.70992,2401.5,2401.4,0.00625156]
[1725546758735,0.00625156,2401.8,2401.4,0.00625156]
[1725546758736,0.42263156,2401.8,2401.4,0.00625156]
[1725546758935,0.41642,2401.5,2401.4,0.00625156]
[1725546759332,4.58042,2401.5,2401.4,0.00625156]
[1725546759939,2.6481,2401.7,2401.4,0.00625156]
[1725546760142,2.6481,2401.7,2401.4,0.42269156]
[1725546760346,0.4164,2401.7,2401.4,0.42269156]
[1725546760530,0.00625156,2401.8,2401.5,0.41642]
[1725546760531,0.42263156,2401.8,2401.5,0.41642]
[1725546761042,0.42262156,2401.8,2401.5,0.41642]
[1725546761343,0.00625156,2401.8,2401.6,0.4164]
[1725546761734,0.00625156,2401.8,2401.7,0.41639]
[1725546762133,0.42263156,2401.8,2401.5,7.14091]
[1725546762337,0.00625156,2401.8,2401.7,0.41639]
[1725546762530,0.00625156,2401.8,2401.5,6.7245]
[1725546762735,0.00625156,2401.8,2401.7,0.41639]
[1725546763131,0.00625156,2401.8,2401.5,6.7245]
[1725546763540,0.4164,2401.7,2401.5,6.7245]
[1725546763840,0.41642,2401.5,2401.4,0.00625156]
[1725546764237,11.62148,2401.5,2401.4,0.00625156]
[1725546764436,5.62148,2401.5,2401.4,0.00625156]
[1725546764744,14.82928,2401.5,2401.4,0.00625156]
[1725546765132,14.41286,2401.5,2401.0,0.41651]
[1725546765337,2.3694,2401.4,2401.0,0.41651]
[1725546765536,0.4165,2401.1,2400.8,2.3332]
[1725546765840,0.41646,2401.3,2400.9,0.41652]
[1725546766146,0.41647,2401.2,2400.9,0.42277156]
[1725546766342,0.41646,2401.3,2401.0,0.41651]
[1725546766537,2.3694,2401.4,2401.0,0.41651]
[1725546766538,2.78585,2401.4,2401.0,0.41651]
[1725546766737,0.41646,2401.3,2401.0,0.41651]
[1725546766944,0.41646,2401.3,2400.9,0.42277156]
[1725546767338,2.78585,2401.4,2401.0,0.4165]
[1725546767536,2.78585,2401.4,2400.9,0.42277156]
[1725546767537,2.3694,2401.4,2400.9,0.42277156]
[1725546767746,2.78585,2401.4,2401.0,0.41651]
[1725546767934,0.41646,2401.3,2400.9,0.42277156]
[1725546768449,0.41646,2401.3,2401.0,0.41651]
[1725546768946,0.41648,2401.2,2400.9,0.42277156]
[1725546769738,0.41649,2401.2,2400.9,0.42277156]
[1725546770442,3.41054,2401.4,2400.9,0.42277156]
[1725546770747,0.41647,2401.3,2400.9,0.00625156]
[1725546770948,0.41647,2401.3,2401.0,0.41651]
[1725546771246,2.3694,2401.4,2400.9,2.88625156]
[1725546771549,2.2121,2401.7,2401.1,6.0878]
[1725546771846,2.32135156,2401.8,2401.2,2.2039]
[1725546772047,0.4164,2401.6,2401.2,2.2039]
[1725546772250,0.4164,2401.6,2401.4,0.41643]
[1725546772545,1.04106,2401.5,2401.1,2.77099]
[1725546772747,0.41649,2401.1,2401.0,2.3693]
[1725546772947,0.41648,2401.2,2401.0,2.78579]
[1725546773153,0.41648,2401.2,2401.1,0.41649]
[1725546773347,0.41645,2401.4,2401.2,0.41647]
[1725546773653,0.41646,2401.3,2401.1,0.41648]
[1725546774555,0.41647,2401.3,2401.1,0.41648]
[1725546774746,0.41647,2401.2,2401.1,0.41648]
[1725546775144,0.41647,2401.3,2401.1,0.41648]
[1725546775347,0.41647,2401.3,2401.2,0.41647]
[1725546775541,0.41645,2401.4,2401.2,0.41647]
[1725546775746,1.041,2401.7,2401.1,2.88]
[1725546775747,0.41643,2401.5,2401.1,2.88]
[1725546775948,0.41644,2401.4,2401.3,0.41646]
[1725546776147,0.41649,2401.1,2401.0,5.5771]
[1725546776449,0.41649,2401.1,2401.0,0.41651]
[1725546776648,0.41651,2401.0,2400.9,0.00625156]
[1725546776849,1.04119,2401.2,2400.9,0.42278156]
[1725546777054,0.41649,2401.1,2401.0,0.4165]